fUST/lending_fUST_20250916
["ID","MTS","AMOUNT","RATE_DAILY","PERIOD"]
[385690197,1757971838030,-500.0,0.00022973,2]
[385690199,1757971838039,-503.3121361,0.00022973,2]
[385690202,1757971838048,-500.0,0.00022973,2]
[385690205,1757971838057,-500.0,0.00022973,2]
[385690206,1757971838066,-156.54434793,0.00022973,2]
[385690209,1757971838076,-457.62265132,0.00022973,2]
[385690211,1757971838085,-500.0,0.00022973,2]
[385690213,1757971838094,-501.27550109,0.00022973,2]
[385690215,1757971838104,-6099.77919774,0.00022973,2]
[385690217,1757971838113,-500.0,0.00022973,2]
[385690219,1757971838122,-500.0,0.00022973,2]
[385690221,1757971838131,-500.0,0.00022973,2]
[385690223,1757971838139,-500.0,0.00022973,2]
[385690226,1757971838149,-500.0,0.00022973,2]
[385690228,1757971838158,-500.0,0.00022973,2]
[385690229,1757971838167,-500.0,0.00022973,2]
[385690231,1757971838176,-500.0,0.00022973,2]
[385690233,1757971838184,-264.11840926,0.00022973,2]
[385690234,1757971838193,-500.0,0.00022973,2]
[385690235,1757971838202,-505.17818866,0.00022973,2]
[385690236,1757971838211,-500.0,0.00022973,2]
[385690237,1757971838219,-500.0,0.00022973,2]
[385690238,1757971838229,-500.0,0.00022989,2]
[385690239,1757971838237,-500.0,0.00022989,2]
[385690240,1757971838246,-500.0,0.00022989,2]
[385690241,1757971838255,-500.0,0.00022989,2]
[385690242,1757971838264,-500.0,0.00022989,2]
[385690243,1757971838273,-500.0,0.00022989,2]
[385690244,1757971838283,-500.0,0.00022989,2]
[385690245,1757971838291,-500.0,0.00022989,2]
[385690246,1757971838300,-342.68543742,0.00022989,2]
[385690247,1757971838309,-500.0,0.00022989,2]
[385690248,1757971838318,-500.0,0.00022989,2]
[385690249,1757971838327,-500.0,0.00022989,2]
[385690250,1757971838336,-500.0,0.00022989,2]
[385690251,1757971838345,-500.0,0.00022989,2]
[385690252,1757971838353,-500.0,0.00022989,2]
[385690253,1757971838362,-500.0,0.00022989,2]
[385690254,1757971838371,-500.0,0.00022989,2]
[385690255,1757971838380,-500.0,0.00022989,2]
[385690256,1757971838389,-500.0,0.00022989,2]
[385690257,1757971838398,-500.0,0.00022989,2]
[385690258,1757971838408,-500.0,0.00022989,2]
[385690259,1757971838417,-500.0,0.00022989,2]
[385690260,1757971838426,-500.0,0.00022989,2]
[385690261,1757971838435,-378.3346029,0.00022989,2]
[385690262,1757971838443,-500.0,0.00022989,2]
[385690263,1757971838453,-500.0,0.00022989,2]
[385690264,1757971838462,-500.0,0.00022989,2]
[385690265,1757971838471,-500.0,0.00022989,2]
[385690266,1757971838480,-500.0,0.00022989,2]
[385690267,1757971838492,-500.0,0.00022989,2]
[385690268,1757971838514,-500.0,0.00022989,2]
[385690269,1757971838524,-500.0,0.00022989,2]
[385690270,1757971838533,-500.0,0.00022989,2]
[385690271,1757971838542,-500.0,0.00022989,2]
[385690272,1757971838551,-500.0,0.00022989,2]
[385690273,1757971838560,-500.0,0.00022989,2]
[385690274,1757971838569,-189.25169572,0.00022989,2]
[385690275,1757971838578,-500.0,0.00022989,2]
[385690276,1757971838587,-500.0,0.00022989,2]
[385690277,1757971838596,-500.0,0.00022989,2]
[385690278,1757971838605,-500.0,0.00022989,2]
[385690279,1757971838614,-500.0,0.00022989,2]
[385690280,1757971838623,-500.0,0.00022989,2]
[385690281,1757971838632,-151.0,0.00022989,2]
[385690282,1757971838642,-151.0,0.00022989,2]
[385690283,1757971838650,-253.95294012,0.00022989,2]
[385690284,1757971838659,-151.0,0.00022989,2]
[385690285,1757971838669,-500.0,0.00022989,2]
[385690286,1757971838678,-151.0,0.00022989,2]
[385690287,1757971838687,-151.0,0.00022989,2]
[385690288,1757971838696,-500.0,0.00022989,2]
[385690289,1757971838705,-100000.0,0.0002299,2]
[385690290,1757971838714,-160.0,0.00023172,2]
[385690291,1757971838724,-376.1992185,0.00023172,2]
[385690292,1757971838733,-303.01357058,0.00023172,2]
[385690293,1757971838743,-245.33558341,0.00023172,2]
[385690294,1757971838753,-15597.60897657,0.00023173,2]
[385690295,1757971838763,-500.0,0.00023263,2]
[385690296,1757971838772,-157.0,0.00023263,2]
[385690297,1757971838780,-151.0,0.00023263,2]
[385690298,1757971838790,-500.0,0.00023263,2]
[385690299,1757971838799,-157.0,0.00023263,2]
[385690300,1757971838808,-151.0,0.00023263,2]
[385690301,1757971838817,-500.0,0.00023263,2]
[385690302,1757971838827,-160.0,0.00023267,2]
[385690303,1757971838943,-359.77061572,0.00023272,2]
[385690304,1757971838953,-500.0,0.00023273,2]
[385690305,1757971838962,-500.0,0.00023273,2]
[385690306,1757971838971,-503.28828913,0.00023273,2]
[385690307,1757971838980,-636.46717375,0.00023273,2]
[385690308,1757971838989,-500.0,0.00023273,2]
[385690309,1757971838998,-500.22444433,0.00023273,2]
[385690310,1757971839008,-500.0,0.00023273,2]
[385690311,1757971839017,-500.0,0.00023273,2]
[385690312,1757971839025,-500.0,0.00023273,2]
[385690313,1757971839035,-500.0,0.00023273,2]
[385690314,1757971839043,-500.0,0.00023273,2]
[385690315,1757971839052,-500.0,0.00023273,2]
[385690316,1757971839061,-500.0,0.00023273,2]
[385690317,1757971839070,-500.0,0.00023273,2]
[385690318,1757971839079,-500.0,0.00023273,2]
[385690319,1757971839088,-500.0,0.00023273,2]
[385690320,1757971839097,-500.0,0.00023273,2]
[385690321,1757971839107,-500.0,0.00023273,2]
[385690322,1757971839116,-500.23631743,0.00023273,2]
[385690323,1757971839125,-500.0,0.00023273,2]
[385690324,1757971839134,-318.61173722,0.00023273,2]
[385690325,1757971839143,-158.23843556,0.00023273,2]
[385690326,1757971839152,-500.0,0.00023273,2]
[385690327,1757971839161,-500.0,0.00023273,2]
[385690328,1757971839171,-500.64167287,0.00023273,2]
[385690329,1757971839179,-500.0,0.00023273,2]
[385690330,1757971839189,-500.0,0.00023273,2]
[385690331,1757971839198,-500.0,0.00023273,2]
[385690332,1757971839207,-500.0,0.00023273,2]
[385690333,1757971839217,-501.85826548,0.00023273,2]
[385690334,1757971839228,-500.0,0.00023273,2]
[385690335,1757971839238,-500.0,0.00023273,2]
[385690336,1757971839247,-500.0,0.00023273,2]
[385690337,1757971839258,-168.57380831,0.00023273,2]
[385690338,1757971839267,-500.0,0.00023273,2]
[385690339,1757971839276,-500.0,0.00023273,2]
[385690340,1757971839285,-500.0,0.00023273,2]
[385690341,1757971839295,-500.0,0.00023273,2]
[385690342,1757971839304,-500.0,0.00023273,2]
[385690343,1757971839313,-500.0,0.00023273,2]
[385690344,1757971839323,-500.0,0.00023273,2]
[385690345,1757971839332,-500.0,0.00023273,2]
[385690346,1757971839341,-500.0,0.00023273,2]
[385690347,1757971839350,-500.0,0.00023273,2]
[385690348,1757971839359,-160.14341571,0.00023273,2]
[385690349,1757971839369,-504.55447671,0.00023273,2]
[385690350,1757971839378,-447.88005988,0.00023273,2]
[385690351,1757971839387,-500.0,0.00023273,2]
[385690352,1757971839397,-500.0,0.00023273,2]
[385690353,1757971839407,-500.0,0.00023273,2]
[385690354,1757971839418,-500.0,0.00023273,2]
[385690355,1757971839428,-500.0,0.00023273,2]
[385690356,1757971839439,-158.18844375,0.00023273,2]
[385690357,1757971839448,-500.0,0.00023273,2]
[385690358,1757971839457,-500.0,0.00023273,2]
[385690359,1757971839468,-160.18377598,0.00023273,2]
[385690360,1757971839478,-500.0,0.00023273,2]
[385690361,1757971839488,-160.18320258,0.00023273,2]
[385690362,1757971839497,-160.20451492,0.00023273,2]
[385690363,1757971839506,-500.0,0.00023273,2]
[385690364,1757971839515,-500.0,0.00023273,2]
[385690365,1757971839524,-501.17196915,0.00023273,2]
[385690366,1757971839533,-500.0,0.00023273,2]
[385690367,1757971839542,-501.7601634,0.00023273,2]
[385690368,1757971839551,-500.0,0.00023273,2]
[385690369,1757971839561,-625.2104512,0.00023273,2]
[385690370,1757971839571,-500.0,0.00023273,2]
[385690371,1757971839580,-170.08117443,0.00023273,2]
[385690372,1757971839589,-500.0,0.00023273,2]
[385690373,1757971839599,-528.28463251,0.00023273,2]
[385690374,1757971839608,-500.0,0.00023273,2]
[385690375,1757971839617,-524.64674101,0.00023273,2]
[385690376,1757971839626,-500.0,0.00023273,2]
[385690377,1757971839635,-500.0,0.00023273,2]
[385690378,1757971839644,-500.0,0.00023273,2]
[385690379,1757971839653,-500.0,0.00023273,2]
[385690380,1757971839662,-163.26431579,0.00023273,2]
[385690381,1757971839672,-500.0,0.00023273,2]
[385690382,1757971839682,-500.0,0.00023273,2]
[385690383,1757971839691,-264.22015242,0.00023273,2]
[385690384,1757971839701,-370000.0,0.00023273,2]
[385690385,1757971839710,-151.0,0.00023273,2]
[385690386,1757971839720,-151.0,0.00023273,2]
[385690387,1757971839732,-500.0,0.00023273,2]
[385690388,1757971839744,-157.0,0.00023273,2]
[385690389,1757971839754,-151.0,0.00023273,2]
[385690390,1757971839763,-151.0,0.00023273,2]
[385690391,1757971839772,-500.0,0.00023273,2]
[385690393,1757971839783,-151.0,0.00023273,2]
[385690395,1757971839792,-151.0,0.00023273,2]
[385690396,1757971839801,-500.0,0.00023273,2]
[385690397,1757971839810,-151.0,0.00023273,2]
[385690398,1757971839822,-225.76846593,0.00023273,2]
[385690399,1757971839831,-151.0,0.00023273,2]
[385690400,1757971839841,-1279.77,0.00023287,2]
[385690401,1757971839850,-2847.96,0.000233,7]
[385690402,1757971839859,-1248.89577309,0.00023337,2]
[385690403,1757971839868,-151.0,0.00023372,2]
[385690404,1757971839878,-151.0,0.00023372,2]
[385690405,1757971839887,-151.0,0.00023372,2]
[385690406,1757971839897,-151.0,0.00023372,2]
[385690407,1757971839907,-151.0,0.00023372,2]
[385690408,1757971839916,-1324.52,0.00023372,2]
[385690409,1757971839925,-1324.52,0.00023372,2]
[385690410,1757971839935,-1324.52,0.00023372,2]
[385690412,1757971839945,-1324.52,0.00023372,2]
[385690414,1757971839954,-1324.52,0.00023372,2]
[385690415,1757971839963,-1324.52,0.00023372,2]
[385690416,1757971839972,-1324.52,0.00023372,2]
[385690417,1757971839981,-1324.52,0.00023372,2]
[385690418,1757971839990,-1324.52,0.00023372,2]
[385690419,1757971839999,-1324.52,0.00023372,2]
[385690420,1757971840009,-1324.52,0.00023372,2]
[385690421,1757971840019,-1324.52,0.00023372,2]
[385690422,1757971840028,-1324.52,0.00023372,2]
[385690423,1757971840038,-1324.52,0.00023372,2]
[385690424,1757971840047,-1324.52,0.00023372,2]
[385690425,1757971840056,-1324.52,0.00023372,2]
[385690426,1757971840065,-1324.52,0.00023372,2]
[385690427,1757971840075,-1324.52,0.00023372,2]
[385690428,1757971840083,-1324.52,0.00023372,2]
[385690429,1757971840092,-1324.52,0.00023372,2]
[385690430,1757971840102,-1324.52,0.00023372,2]
[385690431,1757971840111,-1324.52,0.00023372,2]
[385690432,1757971840120,-1324.52,0.00023372,2]
[385690433,1757971840129,-1324.62808567,0.00023372,2]
[385690434,1757971840138,-1248.89577309,0.00023421,2]
[385690435,1757971840147,-1000.0,0.00023521,2]
[385690436,1757971840156,-1000.0,0.00023521,2]
[385690437,1757971840165,-1000.0,0.00023521,2]
[385690438,1757971840174,-1000.0,0.00023521,2]
[385690439,1757971840183,-1000.0,0.00023521,2]
[385690440,1757971840192,-316.29247482,0.00023521,2]
[385690441,1757971840201,-590.45919396,0.00023521,2]
[385690442,1757971840210,-1000.0,0.00023521,2]
[385690443,1757971840219,-1004.06962117,0.00023521,2]
[385690444,1757971840228,-1000.0,0.00023521,2]
[385690445,1757971840237,-1000.0,0.00023521,2]
[385690446,1757971840246,-1000.0,0.00023521,2]
[385690447,1757971840255,-1000.0,0.00023521,2]
[385690448,1757971840263,-1000.0,0.00023521,2]
[385690449,1757971840272,-1000.0,0.00023521,2]
[385690450,1757971840281,-775.4374358,0.00023521,2]
[385690451,1757971840290,-1000.0,0.00023521,2]
[385690452,1757971840299,-1004.10830129,0.00023521,2]
[385690453,1757971840308,-268.14926453,0.00023521,2]
[385690454,1757971840317,-1000.0,0.00023521,2]
[385690455,1757971840326,-191.46324688,0.00023521,2]
[385690456,1757971840335,-252.87724383,0.00023537,2]
[385690457,1757971840344,-151.0,0.00023537,2]
[385690458,1757971840354,-500.0,0.00023537,2]
[385690459,1757971840363,-175.77017753,0.00023537,2]
[385690460,1757971840372,-500.0,0.00023537,2]
[385690461,1757971840381,-163.42770127,0.00023547,2]
[385690462,1757971840390,-163.4739652,0.00023547,2]
[385690463,1757971840399,-500.0,0.00023547,2]
[385690464,1757971840408,-151.0,0.00023547,2]
[385690465,1757971840417,-151.0,0.00023547,2]
[385690466,1757971840426,-500.0,0.00023547,2]
[385690467,1757971840434,-157.5281012,0.00023547,2]
[385690468,1757971840443,-151.0,0.00023547,2]
[385690469,1757971840452,-500.0,0.00023547,2]
[385690470,1757971840461,-151.89329116,0.00023547,2]
[385690471,1757971840470,-157.0,0.00023547,2]
[385690472,1757971840479,-169.0,0.00023646,2]
[385690473,1757971840489,-253.25824784,0.00023646,2]
[385690474,1757971840498,-240.93027155,0.00023646,2]
[385690475,1757971840507,-151.0,0.00023646,2]
[385690476,1757971840516,-227.38158039,0.00023646,2]
[385690477,1757971840525,-20746.26328358,0.00023658,2]
[385690478,1757971840534,-1000.0,0.00023658,2]
[385690479,1757971840544,-151.0,0.00023658,2]
[385690480,1757971840554,-1000.0,0.00023658,2]
[385690481,1757971840563,-151.0,0.00023658,2]
[385690482,1757971840572,-1000.0,0.00023658,2]
[385690483,1757971840581,-151.0,0.00023658,2]
[385690484,1757971840590,-1000.0,0.00023658,2]
[385690485,1757971840600,-151.0,0.00023658,2]
[385690486,1757971840610,-500.0,0.00023658,2]
[385690487,1757971840619,-151.0,0.00023658,2]
[385690488,1757971840628,-500.0,0.00023658,2]
[385690489,1757971840637,-500.0,0.00023658,2]
[385690490,1757971840647,-500.0,0.00023658,2]
[385690491,1757971840657,-330.76952459,0.00023658,2]
[385690492,1757971840666,-500.0,0.00023658,2]
[385690493,1757971840675,-500.0,0.00023658,2]
[385690494,1757971840684,-500.0,0.00023658,2]
[385690495,1757971840693,-500.0,0.00023658,2]
[385690496,1757971840702,-500.0,0.00023658,2]
[385690497,1757971840711,-500.0,0.00023658,2]
[385690498,1757971840720,-250.0,0.00023658,2]
[385690499,1757971840729,-500.0,0.00023658,2]
[385690500,1757971840738,-250.0,0.00023658,2]
[385690501,1757971840747,-295.58153951,0.00023658,2]
[385690502,1757971840757,-500.0,0.00023658,2]
[385690503,1757971840766,-250.0,0.00023658,2]
[385690504,1757971840776,-500.0,0.00023658,2]
[385690505,1757971840786,-250.0,0.00023658,2]
[385690506,1757971840796,-500.0,0.00023658,2]
[385690507,1757971840806,-250.0,0.00023658,2]
[385690508,1757971840815,-500.0,0.00023658,2]
[385690509,1757971840825,-250.0,0.00023658,2]
[385690510,1757971840834,-500.0,0.00023658,2]
[385690511,1757971840844,-250.0,0.00023658,2]
[385690512,1757971840853,-500.0,0.00023658,2]
[385690513,1757971840862,-250.0,0.00023658,2]
[385690514,1757971840871,-250.0,0.00023658,2]
[385690515,1757971840881,-250.0,0.00023658,2]
[385690516,1757971840890,-250.0,0.00023658,2]
[385690517,1757971840900,-250.0,0.00023658,2]
[385690518,1757971840909,-250.0,0.00023658,2]
[385690519,1757971840918,-250.0,0.00023658,2]
[385690520,1757971840928,-151.0,0.00023658,2]
[385690521,1757971840937,-151.0,0.00023658,2]
[385690522,1757971840946,-151.0,0.00023658,2]
[385690523,1757971840955,-151.0,0.00023658,2]
[385690524,1757971840964,-151.0,0.00023658,2]
[385690525,1757971840973,-300.0,0.00023673,2]
[385690526,1757971840982,-584.4874247,0.00023678,2]
[385690527,1757971840991,-451.81591432,0.00023696,2]
[385690528,1757971841000,-151.0,0.00023811,2]
[385690529,1757971841009,-500.0,0.00023811,2]
[385690530,1757971841019,-500.0,0.00023811,2]
[385690531,1757971841028,-985.28979881,0.00023821,2]
[385690532,1757971841037,-1000.0,0.00023821,2]
[385690533,1757971841047,-1000.0,0.00023821,2]
[385690534,1757971841056,-1000.0,0.00023821,2]
[385690535,1757971841065,-1001.64190611,0.00023821,2]
[385690536,1757971841074,-1000.0,0.00023821,2]
[385690537,1757971841083,-1000.32943356,0.00023821,2]
[385690538,1757971841092,-1000.0,0.00023821,2]
[385690539,1757971841101,-1000.0,0.00023821,2]
[385690540,1757971841111,-1000.0,0.00023821,2]
[385690541,1757971841119,-1000.0,0.00023821,2]
[385690542,1757971841128,-1000.0,0.00023821,2]
[385690543,1757971841137,-502.44212702,0.00023821,2]
[385690544,1757971841147,-501.06223542,0.00023821,2]
[385690545,1757971841156,-532.95468971,0.00023821,2]
[385690546,1757971841165,-1000.0,0.00023821,2]
[385690547,1757971841174,-1000.0,0.00023821,2]
[385690548,1757971841185,-1000.40998517,0.00023821,2]
[385690549,1757971841195,-521.8881874,0.00023821,2]
[385690550,1757971841205,-1000.0,0.00023821,2]
[385690551,1757971841214,-1000.0,0.00023821,2]
[385690552,1757971841223,-505.47288059,0.00023821,2]
[385690553,1757971841235,-1000.0,0.00023821,2]
[385690554,1757971841244,-1003.70918573,0.00023821,2]
[385690555,1757971841253,-1000.0,0.00023821,2]
[385690556,1757971841262,-1000.0,0.00023821,2]
[385690557,1757971841273,-1000.0,0.00023821,2]
[385690558,1757971841283,-1000.0,0.00023821,2]
[385690559,1757971841293,-1000.0,0.00023821,2]
[385690560,1757971841302,-502.38632422,0.00023821,2]
[385690561,1757971841311,-503.15188756,0.00023821,2]
[385690562,1757971841321,-1000.0,0.00023821,2]
[385690563,1757971841330,-1087.63471992,0.00023821,2]
[385690564,1757971841428,-1000.0,0.00023821,2]
[385690565,1757971841439,-1000.0,0.00023821,2]
[385690566,1757971841448,-501.21590062,0.00023821,2]
[385690567,1757971841459,-1000.0,0.00023821,2]
[385690568,1757971841469,-1000.0,0.00023821,2]
[385690569,1757971841479,-1000.0,0.00023821,2]
[385690570,1757971841489,-260.55223277,0.00023821,2]
[385690571,1757971841498,-1000.0,0.00023821,2]
[385690572,1757971841507,-500.89401397,0.00023821,2]
[385690573,1757971841516,-1000.0,0.00023821,2]
[385690574,1757971841525,-1000.0,0.00023821,2]
[385690575,1757971841535,-1000.0,0.00023821,2]
[385690576,1757971841544,-757.81611805,0.00023821,2]
[385690577,1757971841554,-1000.0,0.00023821,2]
[385690578,1757971841563,-501.23242042,0.00023821,2]
[385690579,1757971841572,-210.29565637,0.00023821,2]
[385690580,1757971841581,-1000.0,0.00023821,2]
[385690581,1757971841590,-1000.0,0.00023821,2]
[385690582,1757971841600,-1000.0,0.00023821,2]
[385690583,1757971841609,-1000.0,0.00023821,2]
[385690584,1757971841619,-375.3650232,0.00023821,2]
[385690585,1757971841629,-241.8776247,0.00023821,2]
[385690586,1757971841639,-151.0,0.00023821,2]
[385690587,1757971841649,-500.0,0.00023821,2]
[385690588,1757971841659,-293.97996017,0.00023821,2]
[385690589,1757971841669,-151.0,0.00023821,7]
[385690590,1757971841679,-151.0,0.00023821,7]
[385690591,1757971841689,-151.0,0.00023821,7]
[385690592,1757971841699,-151.0,0.00023821,7]
[385690593,1757971841709,-151.0,0.00023821,7]
[385690594,1757971841719,-161.7920066,0.00023878,2]
[385690595,1757971841728,-198.0,0.0002392,2]
[385690596,1757971841737,-664.29073065,0.00023924,2]
[385690597,1757971841750,-190.16213604,0.00024,2]
[385690598,1757971841759,-160.0,0.00024,2]
[385690599,1757971841768,-15597.60897655,0.00024037,2]
[385690600,1757971841777,-151.0,0.00024068,7]
[385690601,1757971841789,-268.498696,0.00024068,7]
[385690602,1757971841798,-151.0,0.00024068,7]
[385690603,1757971841807,-151.0,0.00024068,7]
[385690604,1757971841817,-151.0,0.00024068,7]
[385690605,1757971841827,-500.82587803,0.00024068,2]
[385690606,1757971841836,-1000.0,0.00024068,2]
[385690607,1757971841845,-1500.0,0.00024068,2]
[385690608,1757971841854,-1503.82579537,0.00024068,2]
[385690609,1757971841863,-1500.0,0.00024068,2]
[385690610,1757971841873,-503.91850416,0.00024068,2]
[385690611,1757971841882,-1500.0,0.00024068,2]
[385690612,1757971841891,-1500.0,0.00024068,2]
[385690613,1757971841900,-1500.0,0.00024068,2]
[385690614,1757971841910,-1500.0,0.00024068,2]
[385690615,1757971841919,-1500.0,0.00024068,2]
[385690616,1757971841928,-843.87877487,0.00024068,2]
[385690617,1757971841937,-1500.0,0.00024068,2]
[385690618,1757971841946,-295.58799711,0.00024085,2]
[385690619,1757971841956,-500.0,0.00024085,2]
[385690620,1757971841965,-500.0,0.00024085,2]
[385690621,1757971841975,-208.1841645,0.00024095,2]
[385690622,1757971841984,-500.0,0.00024095,2]
[385690623,1757971841993,-21513.87502507,0.00024206,2]
[385690624,1757971842002,-151.0,0.00024207,7]
[385690625,1757971842011,-164.250993,0.00024207,7]
[385690626,1757971842020,-151.0,0.00024207,7]
[385690627,1757971842030,-151.0,0.00024207,7]
[385690628,1757971842040,-251.779232,0.00024207,7]
[385690629,1757971842049,-151.0,0.00024207,7]
[385690630,1757971842059,-151.0,0.00024207,7]
[385690631,1757971842068,-151.0,0.00024207,7]
[385690632,1757971842079,-151.0,0.00024207,7]
[385690633,1757971842088,-160.0,0.00024268,3]
[385690634,1757971842099,-217.82061966,0.00024268,3]
[385690635,1757971842108,-13462.34978862,0.00024268,3]
[385690636,1757971842117,-190.16213604,0.000243,2]
[385690637,1757971842127,-500.0,0.00024359,2]
[385690638,1757971842138,-500.0,0.00024359,2]
[385690639,1757971842147,-151.0,0.00024368,7]
[385690640,1757971842157,-908.9840808,0.00024368,2]
[385690641,1757971842166,-1500.0,0.00024368,2]
[385690642,1757971842178,-1500.0,0.00024368,2]
[385690643,1757971842187,-1511.57796991,0.00024368,2]
[385690644,1757971842196,-1500.0,0.00024368,2]
[385690645,1757971842206,-1500.0,0.00024368,2]
[385690646,1757971842215,-1504.0126241,0.00024368,2]
[385690647,1757971842224,-1500.0,0.00024368,2]
[385690648,1757971842234,-907.99383201,0.00024368,2]
[385690649,1757971842243,-1503.17571614,0.00024368,2]
[385690650,1757971842252,-500.57142924,0.00024368,2]
[385690651,1757971842261,-1500.0,0.00024368,2]
[385690652,1757971842271,-1500.0,0.00024368,2]
[385690653,1757971842280,-1500.0,0.00024368,2]
[385690654,1757971842290,-255.54918132,0.00024368,2]
[385690655,1757971842299,-576.75919775,0.00024368,2]
[385690656,1757971842309,-1500.0,0.00024368,2]
[385690657,1757971842318,-1500.0,0.00024368,2]
[385690658,1757971842328,-500.54040616,0.00024368,2]
[385690659,1757971842337,-1506.19060348,0.00024368,2]
[385690660,1757971842347,-616.55077903,0.00024368,2]
[385690661,1757971842356,-1500.0,0.00024368,2]
[385690662,1757971842366,-1500.0,0.00024368,2]
[385690663,1757971842376,-1500.0,0.00024368,2]
[385690664,1757971842386,-573.95030319,0.00024368,2]
[385690665,1757971842395,-1502.55225135,0.00024368,2]
[385690666,1757971842404,-1500.0,0.00024368,2]
[385690667,1757971842415,-1500.0,0.00024368,2]
[385690668,1757971842425,-1500.0,0.00024368,2]
[385690669,1757971842435,-1500.0,0.00024368,2]
[385690671,1757971842444,-501.45917432,0.00024368,2]
[385690673,1757971842454,-1500.0,0.00024368,2]
[385690675,1757971842463,-1500.0,0.00024368,2]
[385690677,1757971842474,-500.0,0.00024369,2]
[385690678,1757971842486,-151.0,0.000244,9]
[385690680,1757971842495,-161.8674926,0.00024438,2]
[385690682,1757971842504,-161.8674926,0.00024438,2]
[385690684,1757971842513,-161.8674926,0.00024438,2]
[385690685,1757971842522,-161.8674926,0.00024438,2]
[385690686,1757971842531,-161.8674926,0.00024438,2]
[385690687,1757971842540,-161.8674926,0.00024438,2]
[385690688,1757971842549,-161.3390906,0.00024438,2]
[385690689,1757971842558,-217.82061966,0.00024497,2]
[385690690,1757971842567,-160.0,0.00024497,2]
[385690691,1757971842576,-160.0,0.00024497,2]
[385690692,1757971842585,-7962.62556305,0.000245,2]
[385690693,1757971842594,-160.0,0.00024501,2]
[385690694,1757971842604,-160.0,0.00024501,2]
[385690695,1757971842613,-417.15472785,0.00024501,2]
[385690696,1757971842622,-160.0,0.00024501,2]
[385690698,1757971842631,-160.0,0.00024501,2]
[385690699,1757971842640,-160.0,0.00024501,2]
[385690700,1757971842649,-160.0,0.00024501,2]
[385690701,1757971842658,-233.24851325,0.00024502,2]
[385690702,1757971842668,-531.33695587,0.00024502,2]
[385690703,1757971842677,-260.0,0.00024548,2]
[385690704,1757971842686,-151.0,0.000246,10]
[385690705,1757971842696,-677.93630866,0.00024616,2]
[385690706,1757971842705,-2000.0,0.00024616,2]
[385690707,1757971842714,-2000.0,0.00024616,2]
[385690708,1757971842724,-2000.0,0.00024616,2]
[385690709,1757971842735,-2000.0,0.00024616,2]
[385690710,1757971842744,-1678.03080736,0.00024616,2]
[385690711,1757971842754,-2000.0,0.00024616,2]
[385690712,1757971842763,-1628.82877778,0.00024616,2]
[385690713,1757971842772,-212.31691441,0.00024633,2]
[385690714,1757971842782,-500.0,0.00024633,2]
[385690715,1757971842791,-500.0,0.00024643,2]
[385690716,1757971842800,-150.0,0.00024657,2]
[385690717,1757971842810,-480.0,0.00024657,3]
[385690718,1757971842819,-480.0,0.00024657,3]
[385690720,1757971842828,-500.0,0.00024657,3]
[385690722,1757971842837,-500.0,0.00024657,3]
[385690725,1757971842846,-157.0,0.00024657,3]
[385690727,1757971842856,-151.0,0.00024657,3]
[385690729,1757971842865,-196.38227234,0.00024657,3]
[385690731,1757971842875,-506.59,0.00024657,3]
[385690733,1757971842884,-480.0,0.00024657,2]
[385690735,1757971842893,-480.0,0.00024657,3]
[385690737,1757971842902,-480.0,0.00024657,3]